fUST/lending_fUST_20260319
["ID","MTS","AMOUNT","RATE_DAILY","PERIOD"]
[408533490,1773850232376,-269.30584973,6.045e-05,2]
[408533492,1773850232387,-30.69415027,6.045e-05,2]
[408533494,1773850232397,-441.16720757,6.045e-05,2]
[408533624,1773850239449,-348.705,6.045e-05,2]
[408533625,1773850239567,-410.12779243,6.045e-05,2]
[408533626,1773850239578,-507.0,6.046e-05,2]
[408533627,1773850239587,-3636.41937549,6.046e-05,2]
[408533629,1773850239598,-2666.47304293,6.046e-05,2]
[408533631,1773850239609,-29559.59986838,6.046e-05,2]
[408533632,1773850239619,-619.682,6.883e-05,2]
[408533633,1773850239628,-3946.20430107,6.942e-05,2]
[408533634,1773850239636,-600.0,7.021e-05,2]
[408533635,1773850239645,-500.0,7.04e-05,2]
[408533636,1773850239655,-514.80618855,7.04e-05,2]
[408533637,1773850239664,-500.0,7.04e-05,2]
[408533638,1773850239673,-500.0,7.04e-05,2]
[408533639,1773850239682,-420.26310543,7.04e-05,2]
[408533640,1773850239694,-500.0,7.04e-05,2]
[408533641,1773850239704,-500.0,7.04e-05,2]
[408533642,1773850239713,-500.0,7.04e-05,2]
[408533643,1773850239975,-500.0,7.04e-05,2]
[408533644,1773850239985,-500.0,7.04e-05,2]
[408533645,1773850239995,-500.0,7.04e-05,2]
[408533646,1773850240004,-500.0,7.04e-05,2]
[408533647,1773850240014,-500.0,7.04e-05,2]
[408533648,1773850240023,-608.72246543,7.04e-05,2]
[408533649,1773850240033,-500.0,7.04e-05,2]
[408533650,1773850240045,-500.0,7.04e-05,2]
[408533651,1773850240055,-500.0,7.04e-05,2]
[408533652,1773850240064,-500.0,7.04e-05,2]
[408533653,1773850240074,-500.0,7.04e-05,2]
[408533654,1773850240084,-500.0,7.04e-05,2]
[408533655,1773850240093,-446.08070962,7.04e-05,2]
[408533656,1773850240103,-349.66519831,7.04e-05,2]
[408533657,1773850240112,-500.0,7.04e-05,2]
[408533658,1773850240122,-187.46621575,7.04e-05,2]
[408533659,1773850240132,-500.0,7.04e-05,2]
[408533660,1773850240142,-500.0,7.04e-05,2]
[408533661,1773850240151,-500.0,7.04e-05,2]
[408533662,1773850240160,-500.0,7.04e-05,2]
[408533663,1773850240170,-500.0,7.04e-05,2]
[408533664,1773850240179,-500.0,7.04e-05,2]
[408533665,1773850240188,-500.0,7.04e-05,2]
[408533666,1773850240197,-500.0,7.04e-05,2]
[408533667,1773850240206,-500.0,7.04e-05,2]
[408533668,1773850240216,-500.0,7.04e-05,2]
[408533669,1773850240226,-500.0,7.04e-05,2]
[408533670,1773850240235,-500.0,7.04e-05,2]
[408533671,1773850240246,-500.0,7.04e-05,2]
[408533672,1773850240255,-500.0,7.04e-05,2]
[408533673,1773850240265,-500.0,7.04e-05,2]
[408533674,1773850240275,-500.0,7.04e-05,2]
[408533675,1773850240285,-500.0,7.04e-05,2]
[408533676,1773850240296,-500.0,7.04e-05,2]
[408533677,1773850240305,-500.0,7.04e-05,2]
[408533678,1773850240315,-500.0,7.04e-05,2]
[408533679,1773850240325,-500.0,7.04e-05,2]
[408533682,1773850240334,-500.0,7.04e-05,2]
[408533683,1773850240344,-500.0,7.04e-05,2]
[408533684,1773850240353,-500.0,7.04e-05,2]
[408533685,1773850240363,-50000.0,7.041e-05,2]
[408533686,1773850240373,-8089.50711406,7.042e-05,2]
[408533687,1773850240382,-9041.59362603,7.142e-05,2]
[408533688,1773850240392,-9735.70987839,7.242e-05,2]
[408533689,1773850240401,-537.6845,7.35e-05,2]
[408533690,1773850240411,-2150.738,7.35e-05,2]
[408533691,1773850240420,-10863.2023013,7.68e-05,2]
[408533692,1773850240430,-1396.0,7.68e-05,2]
[408533693,1773850240439,-640.0,7.68e-05,2]
[408533694,1773850240448,-2188.0,7.68e-05,2]
[408533695,1773850240459,-735.0,7.68e-05,2]
[408533696,1773850240468,-184.448,7.68e-05,2]
[408533697,1773850240479,-438.0,7.68e-05,2]
[408533698,1773850240489,-720.0,7.723e-05,2]
[408533699,1773850240499,-557.5788265,7.898e-05,2]
[408533700,1773850240509,-2230.315306,7.898e-05,2]
[408533701,1773850240519,-788.0,8e-05,2]
[408533702,1773850240529,-500.0,8.219e-05,2]
[408533703,1773850240538,-500.0,8.219e-05,2]
[408533704,1773850240548,-500.0,8.219e-05,2]
[408533705,1773850240558,-486.23406813,8.219e-05,2]
[408533706,1773850240568,-500.0,8.219e-05,2]
[408533707,1773850240578,-500.0,8.219e-05,2]
[408533708,1773850240588,-500.0,8.219e-05,2]
[408533709,1773850240598,-500.0,8.219e-05,2]
[408533710,1773850240607,-500.0,8.219e-05,2]
[408533711,1773850240617,-500.0,8.219e-05,2]
[408533712,1773850240627,-500.0,8.219e-05,2]
[408533713,1773850240637,-500.0,8.219e-05,2]
[408533714,1773850240647,-500.0,8.219e-05,2]
[408533715,1773850240657,-500.0,8.219e-05,2]
[408533716,1773850240666,-2846.10320951,8.272e-05,2]
[408533717,1773850240676,-153.43711958,8.3e-05,2]
[408533718,1773850240686,-154.90407275,8.3e-05,2]
[408533719,1773850240699,-324.6985643,8.32e-05,2]
[408533720,1773850240709,-675.28321075,8.4e-05,2]
[408533721,1773850240718,-151.0,8.422e-05,2]
[408533722,1773850240728,-219.6083569,8.423e-05,2]
[408533723,1773850240738,-500.0,8.423e-05,2]
[408533724,1773850240747,-500.72935978,8.423e-05,2]
[408533725,1773850240757,-500.34862467,8.423e-05,2]
[408533726,1773850240766,-323.23467317,8.423e-05,2]
[408533727,1773850240776,-500.0,8.423e-05,2]
[408533728,1773850240785,-500.0,8.423e-05,2]
[408533729,1773850240797,-500.0,8.423e-05,2]
[408533730,1773850240806,-500.0,8.423e-05,2]
[408533731,1773850240816,-500.35878526,8.423e-05,2]
[408533732,1773850240826,-500.0,8.423e-05,2]
[408533733,1773850240835,-500.0,8.423e-05,2]
[408533734,1773850240845,-158.2361976,8.423e-05,2]
[408533735,1773850240854,-500.0,8.423e-05,2]
[408533736,1773850240864,-500.0,8.423e-05,2]
[408533737,1773850240873,-500.0,8.423e-05,2]
[408533738,1773850240883,-500.0,8.423e-05,2]
[408533739,1773850240893,-160.5487277,8.423e-05,2]
[408533740,1773850240902,-500.0,8.423e-05,2]
[408533742,1773850240912,-500.35287432,8.423e-05,2]
[408533743,1773850240921,-10812.75550765,8.441e-05,2]
[408533744,1773850241051,-759.68686179,8.441e-05,2]
[408533745,1773850241063,-526.80899999,8.441e-05,2]
[408533793,1773850246457,-13625.6474583,8.441e-05,2]
[408533794,1773850246572,-33960.4653398,8.441e-05,2]
[408533882,1773851438752,-500.0,6.981e-05,2]
[408533883,1773851438762,-519.0,6.981e-05,2]
[408533884,1773851438772,-1770.00192553,7.037e-05,2]
[408533885,1773851438781,-3985.89000051,7.137e-05,2]
[408533886,1773851438790,-4339.75089709,7.237e-05,2]
[408533887,1773851438799,-1655.28689209,7.337e-05,2]
[408533895,1773851441251,-2750.86139591,7.337e-05,2]
[408533896,1773851441260,-4826.4065756,7.437e-05,2]
[408533897,1773851441270,-500.0,7.721e-05,2]
[408533898,1773851441281,-500.0,7.721e-05,2]
[408533899,1773851441290,-155.24932431,7.721e-05,2]
[408533900,1773851441301,-500.0,7.721e-05,2]
[408533901,1773851441311,-500.0,7.721e-05,2]
[408533902,1773851441326,-500.0,7.721e-05,2]
[408533903,1773851441336,-500.0,7.721e-05,2]
[408533904,1773851441345,-500.0,7.721e-05,2]
[408533905,1773851441355,-377.35465238,7.721e-05,2]
[408533906,1773851441364,-500.0,7.721e-05,2]
[408533907,1773851441375,-221.24975168,7.721e-05,2]
[408533908,1773851441385,-500.0,7.721e-05,2]
[408533909,1773851441395,-500.0,7.721e-05,2]
[408533910,1773851441404,-500.0,7.721e-05,2]
[408533911,1773851441414,-500.0,7.721e-05,2]
[408533912,1773851441423,-500.0,7.721e-05,2]
[408533913,1773851441435,-500.0,7.721e-05,2]
[408533914,1773851441444,-500.0,7.721e-05,2]
[408533915,1773851441454,-500.0,7.721e-05,2]
[408533916,1773851441463,-500.0,7.721e-05,2]
[408533917,1773851441472,-500.0,7.721e-05,2]
[408533918,1773851441482,-397.24391884,7.721e-05,2]
[408533919,1773851441491,-500.0,7.721e-05,2]
[408533920,1773851441500,-500.0,7.721e-05,2]
[408533921,1773851441510,-500.0,7.721e-05,2]
[408533922,1773851441519,-500.0,7.721e-05,2]
[408533923,1773851441528,-500.0,7.721e-05,2]
[408533924,1773851441537,-500.0,7.721e-05,2]
[408533925,1773851441546,-500.0,7.721e-05,2]
[408533926,1773851441556,-500.0,7.721e-05,2]
[408533927,1773851441566,-500.0,7.721e-05,2]
[408533928,1773851441575,-500.0,7.721e-05,2]
[408533929,1773851441584,-500.0,7.721e-05,2]
[408533930,1773851441593,-500.0,7.721e-05,2]
[408533931,1773851441602,-500.0,7.721e-05,2]
[408533932,1773851441611,-500.0,7.721e-05,2]
[408533933,1773851441620,-500.0,7.721e-05,2]
[408533934,1773851441630,-549.67183736,7.721e-05,2]
[408533935,1773851441639,-500.0,7.721e-05,2]
[408533936,1773851441648,-640.0,7.722e-05,2]
[408533937,1773851441657,-1213.884,7.722e-05,2]
[408533938,1773851441666,-388.17888049,7.722e-05,2]
[408533939,1773851441678,-721.72631556,7.722e-05,2]
[408533965,1773851446825,-1141.81380395,7.722e-05,2]
[408533966,1773851446836,-735.0,7.722e-05,2]
[408533967,1773851446845,-184.448,7.722e-05,2]
[408533968,1773851446856,-438.0,7.722e-05,2]
[408533969,1773851447168,-6816.12729943,7.722e-05,2]
[408533970,1773851447180,-2380.86252301,7.722e-05,2]
[408533971,1773851447192,-23121.64321111,7.722e-05,2]
[408533999,1773852631573,-517.0,6.849e-05,2]
[408534002,1773852631588,-151.0,7.224e-05,2]
[408534004,1773852631598,-563.0,7.621e-05,2]
[408534006,1773852631607,-1480.43230879,7.622e-05,2]
[408534008,1773852631619,-7703.11114865,7.622e-05,2]
[408534011,1773852631631,-14865.54046292,7.622e-05,2]
[408534019,1773852631705,-2924.05903795,7.622e-05,2]
[408534022,1773852631717,-6005.46585419,7.622e-05,2]
[408534036,1773852637696,-1000.0,7.622e-05,2]
[408534037,1773852637707,-3838.58762496,7.622e-05,2]
[408534038,1773852637717,-813.85,7.714e-05,3]
[408534039,1773852637727,-500.0,7.719e-05,2]
[408534040,1773852637736,-500.0,7.719e-05,2]
[408534041,1773852637746,-500.0,7.719e-05,2]
[408534042,1773852638035,-500.0,7.719e-05,2]
[408534043,1773852638045,-413.47219463,7.719e-05,2]
[408534044,1773852638055,-500.0,7.719e-05,2]
[408534045,1773852638064,-500.0,7.719e-05,2]
[408534046,1773852638074,-208.85766072,7.719e-05,2]
[408534047,1773852638083,-500.0,7.719e-05,2]
[408534048,1773852638093,-500.0,7.719e-05,2]
[408534049,1773852638102,-500.0,7.719e-05,2]
[408534050,1773852638112,-500.0,7.719e-05,2]
[408534051,1773852638122,-505.83258257,7.719e-05,2]
[408534052,1773852638131,-602.79052497,7.719e-05,2]
[408534053,1773852638141,-50000.0,7.721e-05,2]
[408534054,1773852638150,-26129.9494739,7.722e-05,2]
[408534055,1773852638160,-219.4684572,7.722e-05,2]
[408534056,1773852638169,-2188.0,7.744e-05,2]
[408534057,1773852638178,-191.413,7.744e-05,2]
[408534058,1773852638187,-208.525,7.744e-05,2]
[408534059,1773852638196,-229.909,7.744e-05,2]
[408534060,1773852638206,-500.0,7.853e-05,2]
[408534061,1773852638215,-258.24559089,7.853e-05,2]
[408534062,1773852638224,-500.0,7.853e-05,2]
[408534063,1773852638233,-623.88245714,7.853e-05,2]
[408534064,1773852638242,-500.0,7.853e-05,2]
[408534065,1773852638251,-500.0,7.853e-05,2]
[408534066,1773852638260,-500.0,7.853e-05,2]
[408534067,1773852638270,-500.0,7.853e-05,2]
[408534068,1773852638279,-156.11719217,7.853e-05,2]
[408534069,1773852638288,-159.99423498,7.853e-05,2]
[408534070,1773852638297,-500.0,7.853e-05,2]
[408534071,1773852638306,-500.0,7.853e-05,2]
[408534072,1773852638316,-500.0,7.853e-05,2]
[408534073,1773852638325,-500.0,7.853e-05,2]
[408534074,1773852638334,-1187605.29653345,7.873e-05,2]
[408534075,1773852638347,-512394.70346655,7.873e-05,2]
[408534076,1773852638356,-500.0,7.973e-05,2]
[408534077,1773852638365,-500.0,7.973e-05,2]
[408534078,1773852638375,-551.99796369,7.973e-05,2]
[408534079,1773852638384,-168.78713403,7.973e-05,2]
[408534080,1773852638393,-500.0,7.973e-05,2]
[408534081,1773852638403,-158.0357756,7.973e-05,2]
[408534082,1773852638413,-500.0,7.973e-05,2]
[408534083,1773852638425,-158.23611083,7.973e-05,2]
[408534084,1773852638437,-500.0,7.973e-05,2]
[408534085,1773852638447,-500.0,7.973e-05,2]
[408534086,1773852638456,-160.03622742,7.973e-05,2]
[408534087,1773852638469,-260.0461206,7.973e-05,2]
[408534088,1773852638479,-160.03622825,7.973e-05,2]
[408534089,1773852638489,-151.0,7.973e-05,2]
[408534090,1773852638500,-2150.738,7.995e-05,2]
[408534091,1773852638510,-675.0,8.1e-05,2]
[408534092,1773852638520,-454.883801,8.205e-05,2]
[408534093,1773852638529,-442.21339245,8.219e-05,2]
[408534094,1773852638538,-500.0,8.219e-05,2]
[408534095,1773852638546,-500.0,8.219e-05,2]
[408534096,1773852638557,-500.0,8.219e-05,2]
[408534097,1773852638566,-639.64544894,8.219e-05,2]
[408534098,1773852638575,-500.0,8.219e-05,2]
[408534099,1773852638585,-500.0,8.219e-05,2]
[408534100,1773852638594,-500.0,8.219e-05,2]
[408534101,1773852638603,-500.0,8.219e-05,2]
[408534102,1773852638615,-500.0,8.219e-05,2]
[408534103,1773852638626,-500.0,8.219e-05,2]
[408534104,1773852638635,-500.0,8.219e-05,2]
[408534105,1773852638645,-500.0,8.219e-05,2]
[408534106,1773852638654,-500.0,8.219e-05,2]
[408534107,1773852638663,-500.0,8.219e-05,2]
[408534108,1773852638672,-500.0,8.219e-05,2]
[408534109,1773852638682,-500.0,8.219e-05,2]
[408534110,1773852638691,-638.28615494,8.219e-05,2]
[408534111,1773852638700,-500.0,8.219e-05,2]
[408534112,1773852638709,-500.0,8.219e-05,2]
[408534113,1773852638719,-500.0,8.219e-05,2]
[408534114,1773852638728,-500.0,8.219e-05,2]
[408534115,1773852638738,-500.0,8.219e-05,2]
[408534116,1773852638748,-500.0,8.219e-05,2]
[408534117,1773852638757,-500.0,8.219e-05,2]
[408534118,1773852638766,-500.0,8.219e-05,2]
[408534119,1773852638775,-358.3958205,8.219e-05,2]
[408534120,1773852638784,-500.0,8.219e-05,2]
[408534121,1773852638794,-1864.06880634,8.272e-05,2]
[408534122,1773852638803,-2964.7550649,8.382e-05,2]
[408534123,1773852638813,-500.0,8.401e-05,2]
[408534124,1773852638822,-500.0,8.401e-05,2]
[408534125,1773852638831,-500.0,8.401e-05,2]
[408534126,1773852638840,-302.51638282,8.401e-05,2]
[408534127,1773852638849,-500.0,8.401e-05,2]
[408534128,1773852638858,-1000.0,8.401e-05,2]
[408534129,1773852638867,-300.0,8.423e-05,2]
[408534130,1773852638876,-470.60318895,8.436e-05,2]
[408534131,1773852638885,-738396.77579481,8.441e-05,2]
[408534136,1773852640162,-3734.58501644,8.441e-05,2]
[408534137,1773852640185,-14343.39999998,8.441e-05,2]
[408534195,1773852642811,-746.1069046,8.441e-05,2]
[408534207,1773852645844,-160324.75886567,8.441e-05,2]
[408534208,1773852645856,-40324.1037569,8.441e-05,2]
[408534209,1773852645867,-36962.88459067,8.441e-05,2]
[408534210,1773852645879,-3379.34944405,8.441e-05,2]
[408534211,1773852645895,-146067.03003972,8.441e-05,2]
[408534212,1773852645907,-3438.22961107,8.441e-05,2]
[408534213,1773852645918,-7358.22787507,8.441e-05,2]
[408534214,1773852646033,-50263.18223013,8.441e-05,2]
[408534215,1773852697179,151.0,8.5e-05,120]
[408534216,1773852737087,151.0,8.5e-05,120]
[408534217,1773852775814,151.0,8.5e-05,120]
[408534218,1773852825607,151.0,8.5e-05,120]
[408534219,1773852860578,151.0,8.5e-05,120]
[408534221,1773852887193,151.0,8.5e-05,120]
[408534222,1773852927954,151.0,8.5e-05,120]
[408534223,1773852962188,151.0,8.5e-05,120]
[408534224,1773853005163,151.0,8.5e-05,120]
[408534227,1773853047771,151.0,8.5e-05,120]
[408534228,1773853085680,151.0,8.5e-05,120]
[408534231,1773853125679,151.0,8.5e-05,120]
[408534232,1773853156093,151.0,8.5e-05,120]
[408534234,1773853196881,151.0,8.5e-05,120]
[408534235,1773853227035,151.0,8.5e-05,120]
[408534236,1773853266012,151.0,8.5e-05,120]
[408534238,1773853305277,151.0,8.5e-05,120]
[408534240,1773853354826,151.0,8.5e-05,120]
[408534241,1773853386844,151.0,8.5e-05,120]
[408534242,1773853427230,151.0,8.5e-05,120]
[408534243,1773853477019,151.0,8.5e-05,120]
[408534245,1773853517423,151.0,8.5e-05,120]
[408534246,1773853548430,151.0,8.5e-05,120]
[408534248,1773853586992,151.0,8.5e-05,120]
[408534251,1773853626108,151.0,8.5e-05,120]
[408534252,1773853662125,151.0,8.5e-05,120]
[408534253,1773853695287,151.0,8.5e-05,120]
[408534255,1773853727004,151.0,8.5e-05,120]
[408534256,1773853757505,151.0,8.5e-05,120]
[408534264,1773853795048,151.0,8.5e-05,120]
[408534265,1773853826788,151.0,8.5e-05,120]
[408534285,1773853831800,-295.2058821,6.478e-05,2]
[408534287,1773853831810,-512.0,6.478e-05,2]
[408534289,1773853831820,-788.44198779,6.7e-05,3]
[408534290,1773853831829,-2666.4730429,6.7e-05,2]
[408534291,1773853831839,-500.0,6.7e-05,2]
[408534292,1773853831848,-171.041568,7.325e-05,2]
[408534293,1773853831858,-77.17067326,7.498e-05,2]
[408534318,1773853837936,-222.82932674,7.498e-05,2]
[408534319,1773853837946,-300.0,7.499e-05,2]
[408534320,1773853837955,-300.0,7.499e-05,2]
[408534321,1773853837964,-408.69475419,7.5e-05,2]
[408534322,1773853837974,-828.69641222,7.5e-05,2]
[408534323,1773853837983,-913.83782414,7.5e-05,2]
[408534324,1773853837992,-775.97978224,7.5e-05,2]
[408534379,1773853840303,-155.78017691,7.5e-05,2]
[408534381,1773853840312,-554.3898841,7.5e-05,2]
[408534386,1773853840356,-1125.34589103,7.5e-05,2]
[408534389,1773853840367,-9460.83663579,7.5e-05,2]
[408534391,1773853840376,-500.0,7.503e-05,2]
[408534393,1773853840385,-322.62076676,7.503e-05,2]
[408534395,1773853840394,-500.0,7.603e-05,2]
[408534422,1773853840646,-500.46756119,7.603e-05,2]
[408534424,1773853840656,-438.0,7.816e-05,2]
[408534426,1773853840665,-82.1558252,7.816e-05,2]
[408534429,1773853840676,-261.47633825,7.816e-05,2]
[408534431,1773853840687,-383.87783655,7.816e-05,2]
[408534433,1773853840696,-184.448,7.816e-05,2]
[408534435,1773853840706,-151.29287465,7.976e-05,2]
[408534437,1773853840718,-461.67526834,7.976e-05,2]
[408534439,1773853840727,-537.6845,7.976e-05,2]
[408534441,1773853840738,-1647.12152046,7.976e-05,2]
[408534661,1773853842925,-503.61647954,7.976e-05,2]
[408534663,1773853842936,-1000.0,8.051e-05,2]
[408534665,1773853842945,-466.46243092,8.151e-05,2]
[408534667,1773853842955,-2047.789075,8.4e-05,30]
[408534669,1773853842965,-500.0,8.423e-05,2]
[408534671,1773853842974,-500.0,8.423e-05,2]
[408534673,1773853842985,-153.79420127,8.437e-05,2]
[408534675,1773853842994,-500.0,8.437e-05,2]
[408534677,1773853843004,-500.0,8.437e-05,2]
[408534679,1773853843013,-500.0,8.437e-05,2]
[408534681,1773853843022,-500.0,8.437e-05,2]
[408534683,1773853843033,-193.25190305,8.437e-05,2]
[408534685,1773853843043,-199.12744986,8.437e-05,2]
[408534688,1773853843055,-421.14290437,8.437e-05,2]
[408534690,1773853843064,-1578.85709563,8.438e-05,2]
[408534844,1773853846281,-4023.48155757,8.438e-05,2]
[408534845,1773853846291,-500.0,8.44e-05,2]
[408534846,1773853846301,-500.0,8.44e-05,2]
[408534847,1773853846311,-500.0,8.44e-05,2]
[408534848,1773853846322,-297.75181426,8.44e-05,2]
[408534849,1773853846333,-500.0,8.44e-05,2]
[408534850,1773853846343,-500.0,8.44e-05,2]
[408534851,1773853846353,-500.0,8.44e-05,2]
[408534852,1773853846362,-500.0,8.44e-05,2]
[408534853,1773853846372,-246.80030846,8.44e-05,2]
[408534854,1773853846381,-500.0,8.44e-05,2]
[408534855,1773853846391,-500.0,8.44e-05,2]
[408534856,1773853846400,-500.0,8.44e-05,2]
[408534857,1773853846409,-500.0,8.44e-05,2]
[408534858,1773853846418,-2777.7650785,8.441e-05,2]
[408534859,1773853857852,850.2,8.5e-05,120]
[408534860,1773853867184,151.0,8.5e-05,120]
[408534861,1773853885680,1036.2,8.5e-05,120]
[408534863,1773853916901,151.0,8.5e-05,120]
[408534864,1773853947193,151.0,8.5e-05,120]
[408534865,1773853987455,151.0,8.5e-05,120]
[408534866,1773854025361,151.0,8.5e-05,120]
[408534867,1773854065612,151.0,8.5e-05,120]
[408534869,1773854106079,151.0,8.5e-05,120]
[408534870,1773854145194,151.0,8.5e-05,120]
[408534871,1773854176056,151.0,8.5e-05,120]
[408534872,1773854217347,151.0,8.5e-05,120]
[408534873,1773854252234,151.0,8.5e-05,120]
[408534876,1773854295627,151.0,8.5e-05,120]
[408534877,1773854347803,151.0,8.5e-05,120]
[408534878,1773854397136,151.0,8.5e-05,120]
[408534879,1773854428319,151.0,8.5e-05,120]
[408534881,1773854475028,151.0,8.5e-05,120]
[408534882,1773854514723,151.0,8.5e-05,120]
[408534883,1773854546565,151.0,8.5e-05,120]
[408534884,1773854576894,151.0,8.5e-05,120]
[408534885,1773854615294,151.0,8.5e-05,120]
[408534886,1773854647686,151.0,8.5e-05,120]
[408534889,1773854686530,151.0,8.5e-05,120]
[408534890,1773854717373,151.0,8.5e-05,120]
[408534891,1773854755659,151.0,8.5e-05,120]
[408534892,1773854792723,151.0,8.5e-05,120]
[408534893,1773854825280,151.0,8.5e-05,120]
[408534895,1773854855471,151.0,8.5e-05,120]
[408534932,1773855032033,-515.0,6.706e-05,2]
[408534934,1773855032045,-1510.5047345,6.706e-05,2]
[408534960,1773855032054,-300.0,6.713e-05,2]
[408534965,1773855032318,-261.4905487,7.011e-05,2]
[408534967,1773855032327,-3053.64233613,7.563e-05,2]
[408534969,1773855032337,-685.13106723,7.614e-05,2]
[408534971,1773855032346,-300.0,7.661e-05,2]
[408534973,1773855032355,-300.0,7.661e-05,2]
[408534975,1773855032364,-1200.0,7.662e-05,2]
[408534977,1773855032374,-6531.66561806,7.663e-05,2]
[408534979,1773855032383,-7269.49672744,7.763e-05,2]
[408534981,1773855032392,-5000.00911458,7.763e-05,2]
[408534983,1773855032401,-31.95389922,7.863e-05,2]
[408535078,1773855038025,-7518.42962217,7.863e-05,2]
[408535079,1773855038036,-500.0,7.953e-05,2]
[408535082,1773855038046,-455.76341085,7.953e-05,2]
[408535083,1773855038056,-500.0,7.953e-05,2]
[408535085,1773855038065,-51464.70351443,7.973e-05,2]
[408535089,1773855038093,-4139.67013678,7.973e-05,2]
[408535091,1773855038105,-486039.7153216,7.973e-05,2]
[408535533,1773855043289,-1000.0,7.973e-05,2]
[408535609,1773855046460,-13564.71438568,7.973e-05,2]
[408535610,1773855046474,-17110.00101674,7.973e-05,2]
[408535731,1773856232244,-478.82850861,6.872e-05,2]
[408535737,1773856232297,-1288.25620764,6.872e-05,2]
[408535739,1773856232307,-517.0,6.872e-05,2]
[408535741,1773856232317,-500.0,7.234e-05,2]
[408535743,1773856232326,-19690.01303255,7.363e-05,2]
[408535747,1773856232352,-12981.78901279,7.363e-05,2]
[408535830,1773856238290,-180.03003936,7.362e-05,2]
[408535831,1773856238300,-38605.51102046,7.363e-05,2]
[408535832,1773856238311,-1034911.15452851,7.363e-05,2]
[408535833,1773856238324,-45551.42,7.363e-05,2]
[408535881,1773856240664,-1447.03840466,7.363e-05,2]
[408536166,1773856243342,-2436.3046312,7.363e-05,2]
[408536168,1773856243353,-2764.89498196,7.363e-05,2]
[408536213,1773856246642,-20689.30744817,7.363e-05,2]
[408536238,1773857432260,-511.0,6.34e-05,2]
[408536241,1773857432270,-437.33945034,6.391e-05,2]
[408536246,1773857432316,-410.71337545,6.391e-05,2]
[408536248,1773857432327,-394.47750578,6.391e-05,2]
[408536250,1773857432337,-675.42364712,6.391e-05,2]
[408536342,1773857438555,-1000.0,6.391e-05,2]
[408536343,1773857438609,-139.37398488,6.391e-05,2]
[408536344,1773857438618,-300.0,6.489e-05,2]
[408536345,1773857438628,-300.0,6.489e-05,2]
[408536347,1773857438637,-300.0,6.49e-05,2]
[408536348,1773857438646,-1200.0,6.49e-05,2]
[408536349,1773857438655,-176.13246964,6.491e-05,2]
[408536350,1773857438663,-6553.01745519,6.491e-05,2]
[408536351,1773857438672,-7562.99246501,6.691e-05,2]
[408536352,1773857438681,-500.0,6.832e-05,2]
[408536353,1773857438690,-232.8135004,6.872e-05,2]
[408536354,1773857438703,-7736.00967735,6.872e-05,2]
[408536355,1773857438712,-420.0,7.138e-05,2]
[408536356,1773857438721,-264.0,7.139e-05,2]
[408536357,1773857438729,-500.0,7.192e-05,2]
[408536358,1773857438740,-189623.50339963,7.263e-05,2]
[408536359,1773857438751,-756.10790112,7.263e-05,2]
[408536423,1773857440829,-375.44103514,7.263e-05,2]
[408536425,1773857440843,-566.14546745,7.263e-05,2]
[408536427,1773857440854,-933.89825279,7.263e-05,2]
[408536429,1773857440865,-14134.00519637,7.263e-05,2]
[408536432,1773857440876,-3502.94299894,7.263e-05,2]
[408536434,1773857440886,-853.05390387,7.263e-05,2]
[408536719,1773857443588,-1277.19886918,7.263e-05,2]
[408536721,1773857443599,-3884.64735648,7.263e-05,2]
[408536723,1773857443610,-4614.4999995,7.263e-05,2]
[408536732,1773857443697,-500.0,7.263e-05,2]
[408536784,1773857446716,-16956.56597192,7.263e-05,2]
[408536788,1773858165719,400.0,8.49e-05,120]
[408536809,1773858631427,-516.0,6.771e-05,2]
[408536810,1773858631436,-184.88374186,6.873e-05,2]
[408536811,1773858631446,-11.11625814,7.021e-05,2]
[408536812,1773858631458,-159.92530986,7.021e-05,2]
[408536813,1773858631467,-355.3578231,7.043e-05,2]
[408536814,1773858631486,-144.6421769,7.043e-05,2]
[408536815,1773858631495,-155.94444765,7.063e-05,2]
[408536816,1773858631506,-5590.54558684,7.063e-05,2]
[408536924,1773858637519,-8930.98640749,7.063e-05,2]
[408536926,1773858637531,-986.95716686,7.063e-05,2]
[408536928,1773858637543,-435.42165357,7.063e-05,2]
[408537018,1773858640004,-1075.08886253,7.063e-05,2]
[408537238,1773858642756,-11910.60790869,7.063e-05,2]